Cogmind - Beta 9.3 @@@ ROGUE MODE // 2019.12.19 @ 17:42:31 // Winter2019/RPGLIKE Player: darksnake Result: Destroyed by Y-45 Defender with Heavy Assault Rifle Performance ------------- Evolutions (1) 500 Regions Visited (2) 400 Robots Destroyed (12) 60 Value Destroyed (385) 385 Prototype IDs (0) 0 Alien Tech Used (0) 0 Bonus (0) 0 TOTAL SCORE: 1345 Bonus ------- None Cogmind --------- Core Integrity 0/600 Matter 300/300 Energy 160/160 System Corruption 0% Temperature Cool (9) Movement Treading (160) Location -9/Materials Parts ------- > --- POWER (1) -------- Light Nuclear Core > --- PROPULSION (2) --- Light Treads Light Treads > --- UTILITY (1) ------ Salvage Targeting Computer > --- WEAPON (2) ------- Spread Laser > --- INVENTORY (2) ---- Ion Engine Spread Laser Peak State ------------ > --- POWER ------------ Light Nuclear Core > --- PROPULSION ------- Light Treads Light Treads > --- UTILITY ---------- Salvage Targeting Computer > --- WEAPON ----------- Spread Laser Spread Laser > --- INVENTORY -------- Ion Engine Spread Laser [Rating: 11] Favorites ----------- Power Ion Engine Engine Ion Engine Power Core Light Nuclear Core Propulsion Light Treads Treads Light Treads Utility Salvage Targeting Computer Processor Salvage Targeting Computer Weapon Spread Laser Energy Gun Spread Laser Ballistic Gun Light Assault Rifle Build | -11 -10 -9 ------- Run | Scr Mat Mat Slots Evolved 2 | 2 . . Power . | . . . Propulsion 1 | 1 . . Utility . | . . . Weapon 1 | 1 . . Parts Attached 11 | 6 1 4 Power 3 | 2 . 1 Engine 2 | 2 . . Core 1 | . . 1 Reactor . | . . . Propulsion 2 | 2 . . Treads 2 | 2 . . Leg . | . . . Wheel . | . . . Hover . | . . . Flight . | . . . Utility 1 | . 1 . Device . | . . . Storage . | . . . Processor 1 | . 1 . Hackware . | . . . Protection . | . . . Artifact . | . . . Weapon 5 | 2 . 3 Energy Gun 3 | 1 . 2 Energy Cannon . | . . . Ballistic Gun 2 | 1 . 1 Ballistic Cannon . | . . . Launcher . | . . . Special Weapon . | . . . Impact Weapon . | . . . Slashing Weapon . | . . . Piercing Weapon . | . . . Special Melee Weapon . | . . . Unidentified Prototypes . | . . . Parts Lost 1 | . . 1 Power . | . . . Propulsion . | . . . Utility . | . . . Weapon 1 | . . 1 Highest Loss Streak 1 | . . 1 Average Slot Usage (%) 99 | . 99 98 Engine 8 | . 16 3 Core 7 | . . 13 Treads 33 | . 33 33 Processor 15 | . 15 16 Energy Gun 25 | . 16 31 Ballistic Gun 6 | . 16 . Naked Turns . | . . . Heaviest Build 11 | 7 7 11 Greatest Support 40 | 20 40 40 Greatest Overweight (x) 1 | 1 . . Average Overweight (x) . | . . . Largest Inventory Capacity 2 | 2 2 2 Average Capacity 1 | 1 2 2 Most Carried 2 | 2 2 2 Average Carried 1 | 1 2 1 Final Capacity 2 | 2 2 2 Final Carried 2 | 2 2 2 Class Distribution -------------------- 100% | Mutant Dominant Class ---------------- Mutant | -10/Materials Mutant | -9/Materials Resources | -11 -10 -9 ----------- Run | Scr Mat Mat Matter Collected 321 | 260 21 40 Remotely . | . . . Salvage Created 252 | . 51 201 Parts 25 | . 5 20 Haulers Intercepted . | . . . Recyclers Shooed . | . . . Parts Field Recycled . | . . . Retrieved Matter . | . . . Parts Self-Destructed . | . . . Prevented . | . . . Kills | -11 -10 -9 ------- Run | Scr Mat Mat Combat Hostiles Destroyed 11 | . 2 9 Guns 10 | . 2 8 AOE 1 | . . 1 Classes Destroyed 3 | . 3 . Watcher 1 | . 1 . Swarmer 2 | . 1 1 Grunt 9 | . 1 8 Best Kill Streak 3 | . 2 3 Combat Bots Only 3 | . 1 3 Max Kills in Single Turn 2 | . 1 2 Gunslinging 1 | . . 1 Exploded 1 | . . 1 Melee . | . . . Uniques/NPCs Destroyed . | . . . Combat | -11 -10 -9 -------- Run | Scr Mat Mat Damage Taken 753 | . 20 733 Core 608 | . 16 592 Absorbed by Shields . | . . . Redirected to Core 499 | . 16 483 Core Remaining (%) 98 | 100 97 . Volleys Fired 34 | . 11 23 Largest 2 | . 2 2 Hottest 130 | . 60 130 Shots Fired 68 | . 22 46 Gun 68 | . 22 46 Cannon . | . . . Launcher . | . . . Special . | . . . Kinetic 11 | . 11 . Thermal 57 | . 11 46 Explosive . | . . . Electromagnetic . | . . . Robot Hit Streak 24 | . 4 24 Robot Miss Streak 4 | . 3 4 Penetration Max . | . . . Secondary Targets 1 | . . 1 Max Gunslinging Chain 1 | . . 1 Shots Hit Robots 57 | . 13 44 Core Hits 42 | . 6 36 Critical Hits . | . . . Critical Kills . | . . . Critical Parts Destroyed . | . . . Melee Attacks . | . . . Impact . | . . . Slashing . | . . . Piercing . | . . . Sneak Attacks . | . . . Combat Hostiles . | . . . Follow-up Attacks . | . . . Damage Inflicted 631 | . 142 489 Guns 511 | . 142 369 Cannons . | . . . Explosions 113 | . . 113 Melee . | . . . Ramming 7 | . . 7 Kinetic 46 | . 46 . Thermal 465 | . 96 369 Explosive 113 | . . 113 Electromagnetic . | . . . Impact . | . . . Slashing . | . . . Piercing . | . . . Highest Corruption . | . . . Average Corruption . | . . . Corruption Purged . | . . . Overload Shots . | . . . Overflow Damage 2 | . . 2 Projectiles . | . . . Explosions 2 | . . 2 Melee . | . . . Knockbacks . | . . . Impact . | . . . Kinetic . | . . . Secondary . | . . . Self-Inflicted Damage 101 | . . 101 Shots 1 | . . 1 Rammed 2 | . . 2 Targets Rammed 2 | . . 2 Kicked . | . . . Crushed . | . . . Highest Temperature 336 | . 40 336 Average Temperature 105 | . 13 122 Received Heat Transfer 282 | . . 282 Effects 2 | . . 2 Interference 2 | . . 2 Siege Activations . | . . . Robots Corrupted . | . . . Combat Hostiles . | . . . Parts Fried . | . . . Impact Corruptions . | . . . Robots Melted . | . . . Combat Hostiles . | . . . Parts Melted . | . . . Heat Transferred 685 | . 225 460 Parts Sabotaged . | . . . Parts Stolen . | . . . Parts Stripped . | . . . Power Chain Reactions . | . . . Missiles Intercepted . | . . . Alert | -11 -10 -9 ------- Run | Scr Mat Mat Peak Influence 308 | . 87 308 Average Influence 117 | . 43 194 Maximum Alert Level 1 | . . 1 Low Security (%) 80 | 100 100 61 Level 1 19 | . . 38 Level 2 . | . . . Level 3 . | . . . Level 4 . | . . . Level 5 . | . . . High Security . | . . . Max Security . | . . . Squads Dispatched 2 | . . 2 Investigation 1 | . . 1 Extermination . | . . . Reinforcement 1 | . . 1 Assault . | . . . Garrison . | . . . Intercept . | . . . Construction Impeded . | . . . Haulers Reinforced . | . . . Stealth | -11 -10 -9 --------- Run | Scr Mat Mat Distress Signals 1 | . 1 . Communications Jammed . | . . . Distress Signals . | . . . Times Spotted 23 | . 8 15 Peak Tracking Total 5 | . 4 5 Tactical Retreats 1 | . 1 . Traps | -11 -10 -9 ------- Run | Scr Mat Mat Traps Triggered . | . . . Indirectly . | . . . Trap Hack Attempts . | . . . Triggered . | . . . Disarmed . | . . . Reprogrammed . | . . . Reused . | . . . Traps Extracted . | . . . Installed . | . . . Triggered . | . . . Machines | -11 -10 -9 ---------- Run | Scr Mat Mat Machines Disabled 3 | . . 3 Max in Single Turn 3 | . . 3 Machines Sabotaged . | . . . Garrisons Compromised . | . . . Overloaded Fab Kills . | . . . Fab Network Shutdowns . | . . . Hacking | -11 -10 -9 --------- Run | Scr Mat Mat Machines Accessed 2 | . 1 1 Terminals 2 | . 1 1 Fabricators . | . . . Repair Stations . | . . . Recycling Units . | . . . Scanalyzers . | . . . Garrison Access . | . . . Total Hacks 5 | . 2 3 Successful 3 | . . 3 Failed 2 | . 2 . Catastrophic . | . . . Database Lockouts . | . . . Manual . | . . . Terminals 5 | . 2 3 Fabricators . | . . . Repair Stations . | . . . Recycling Units . | . . . Scanalyzers . | . . . Garrison Access . | . . . Terminal Hacks 3 | . . 3 Record 3 | . . 3 Fabricator Hacks . | . . . Repair Station Hacks . | . . . Recycling Unit Hacks . | . . . Scanalyzer . | . . . Garrison Access Hacks . | . . . Unauthorized Hacks . | . . . Terminals . | . . . Fabricators . | . . . Repair Stations . | . . . Recycling Units . | . . . Scanalyzers . | . . . Garrison Access . | . . . Data Cores Recovered . | . . . Used . | . . . Hacking Detections 2 | . 1 1 Full Trace Events 1 | . . 1 Feedback Events . | . . . Feedback Blocked . | . . . Robot Schematics Acquired . | . . . Robots Built . | . . . Matter . | . . . Time . | . . . Total Robot Build Rating . | . . . Part Schematics Acquired . | . . . Parts Built . | . . . Matter . | . . . Time . | . . . Total Part Build Rating . | . . . Parts Repaired . | . . . Time . | . . . Parts Recycled . | . . . Recycled Matter . | . . . Retrieved Matter . | . . . Retrieved Components . | . . . Parts Scanalyzed . | . . . Part Schematics Acquired . | . . . Parts Damaged . | . . . Bothacking | -11 -10 -9 ------------ Run | Scr Mat Mat Used RIF Installer . | . . . Robots Hacked . | . . . Non-combat . | . . . Combat . | . . . Robot Hacks Applied . | . . . Relay Couplers Released . | . . . Robots Rewired . | . . . Allies Hacked . | . . . Hacks Repelled . | . . . Allies | -11 -10 -9 -------- Run | Scr Mat Mat Total Allies . | . . . Largest Group . | . . . Highest-Rated Group . | . . . Highest-Rated Ally . | . . . Total Orders . | . . . Ally Attacks . | . . . Total Damage . | . . . Kills . | . . . Allies Corrupted . | . . . Allies Melted . | . . . Intel | -11 -10 -9 ------- Run | Scr Mat Mat Robot Analysis Total . | . . . Derelict Logs Recovered . | . . . Drone Launches . | . . . Drone Recoveries . | . . . Exploration | -11 -10 -9 ------------- Run | Scr Mat Mat Turns Passed 610 | 74 218 318 Spaces Moved 301 | 42 117 142 Core 4 | 4 . . Treads 297 | 38 117 142 Legs . | . . . Wheels . | . . . Hover . | . . . Flight . | . . . Fastest Speed 50 | 50 160 160 Average Speed 158 | 151 160 160 Slowest Speed 160 | 160 160 160 Overloaded Moves . | . . . Propulsion Burnouts . | . . . Robots Hopped . | . . . Cave-ins Triggered . | . . . Exploration Rate (%) 16 | 4 27 18 Regions Visited 2 Branch Regions . Pre-discovered Areas . | . . . Known Exits Taken . | . . . Unknown Exits Taken 2 | 1 1 . Scrap Searched . | . . . Spaces Dug . | . . . Terrain Destroyed 2 | . . 2 Melee . | . . . Projectile . | . . . AOE 2 | . . 2 Actions | -11 -10 -9 --------- Run | Scr Mat Mat Total 365 | 51 128 186 Wait 8 | . . 8 Move 299 | 41 116 142 Hop . | . . . Pick Up 5 | 3 . 2 Fast Attach 8 | 4 1 3 Attach 2 | 2 . . Detach 1 | 1 . . Swap 1 | . . 1 Drop 5 | . . 5 Fire 34 | . 11 23 Melee . | . . . Ram . | . . . Kick . | . . . Crush 2 | . . 2 Escape Stasis . | . . . Rewire . | . . . Trap . | . . . Miscellaneous . | . . . Route ------- -11/Scrapyard -10/Materials -9/Materials (discovered 1 exit: [*Min]) History --------- Turn | Location | Event 14 | -11/Scrapyard | Upgraded with Propulsion slot (x1) 14 | -11/Scrapyard | Upgraded with Weapon slot (x1) 18 | -11/Scrapyard | Discovered new exit (range 16) 75 | -11/Scrapyard | Entered Materials 268 | -10/Materials | Discovered new exit (range 14) 293 | -10/Materials | Entered another Materials area 295 | -9/Materials | Reached level 2 327 | -9/Materials | Build established: Mutant 493 | -9/Materials | Core integrity fell below 50% 522 | -9/Materials | Discovered new exit (range 16) 569 | -9/Materials | Reached level 3 588 | -9/Materials | Core integrity fell below 20% 611 | -9/Materials | Destroyed by Y-45 Defender with Heavy Assault Rifle Last Messages --------------- R-06 Scavenger collects Aluminum Leg. K-01 Serf collects debris. R-06 Scavenger collects Aluminum Leg. K-01 Serf collects debris. G-34 Mercenary destroyed. [Achievement: Crack Shot] G-34 Mercenary destroyed. Slammed into W-16 Scout. EXIT=FOUND G-34 Mercenary destroyed. K-01 Serf collects debris. Reached level 3. S-10 Pest destroyed. K-01 Serf collects debris. U-05 Engineer lays Concrete. K-01 Serf cleans the Terminal. K-01 Serf collects debris. Spread Laser destroyed. K-01 Serf cleans the Processing Tank. [Achievement: First Step to Greatness] Map ----- +----------------------------------------------------+ | ???????????????????????????????????? ?????????? | | ???????????????????????????????????? ! ?????????? | | ???????????????????????????????????? ?????????? | | ???????????????????????????????????? ?????????? | | ???????????????????????????????????? #?????????? | | ???????????????????????????????????? #?????????? | | ???????????????????????????????????# #?????????? | | ???????????????????????????????????# #?????????? | | ???????????????????????????????????# #?????????? | | ???????????????????????????????????# #?????????? | | ???????????????????????????????????# #?????????? | | ???????????????????????????????????+ +?????????? | | ???????????????????????????????????# #?????????? | | ????????????????????????????????####[ ##?######## | | ????????????????????????????????#"""%= #?# | | ????????????????????????????????#" =* #?# | | ????????????????????????????????#"! #?# | | ????????????????????????????????#"" < #?# | | ????????????????????????????????#"! #?# | | ????????????????????????????????#" #?# !! | | ????????????????????????????????#""" #?# !! | | ????????????????????????????????#### ##?# | | ????????????????#?????#####???###### % ########+## | | ????????????????# ###"T"##### YYr | | ????????????????# | | ????????????????# @ | | ????????????????# """"" """"" " #### ## | | ????????????????# """"" """"" T #??#=#? | | ???????????????????""""" """"" " ##+####+## | | ??????????????????? k # %%%*# | | ??????????????????? # % # | | ?????????????????? """" """" """"" # # | | ???????????????????"""" """" """"" # # | | ????????????????????""" """" """"" / # | | ????????????????????? # # | | ????????????????????? u # # | | ????????????????????? ############ # # | | ????????????????????? ???????????+ # + | | ????????????????????? ???????????# ########## | | ????????????????????? ???????????# #????????? | | ??????????????????????? ???????????# ###????????? | | ????????????????????????????????????# ???????????? | | ????????????????????????????????????# ???????????? | | ????????????????????????????????????# ???????????? | | ????????????????????????????????????# ???????????? | | ????????????????????????????????????# ???????????? | | ????????????????????????????????????? ???????????? | | ????????????????????????????????????? ???????????? | | ?????????????????????????????????????????????????? | | ?????????????????????????????????????????????????? | +----------------------------------------------------+ Best States ------------- Heat Dissipation 31 Energy Generation 14 Energy Capacity 250 Matter Stores 300 Matter Capacity 300 Sight Range 16 Robot Scan Range 6 Terrain Scan Density 10 Evasion (%) 40 Recoil Reduction 2 Salvage Targeting 1 Item Schematics ----------------- None Robot Schematics ------------------ None Fabricated ------------ Nothing Alien Tech Used ----------------- None Achievements -------------- Crack Shot First Step to Greatness One Hack Too Far Uninvited Guest Challenges ------------ None RPGLIKE | -11 -10 -9 --------- Run | Scr Mat Mat Levels Raised 2 | . . 2 XP Earned 6060 | 3000 285 2775 XP Spent 2925 | 2650 275 . Upgrades 10 | 6 4 . Propulsion Slot 1 | 1 . . Weapon Slot 1 | 1 . . Heat Dissipation 1 | . 1 . Inventory Capacity 2 | 2 . . Sensor Range 3 | . 3 . Ranged Accuracy 2 | 2 . . Protomatter Created 215 | . 41 174 Protomatter Decayed 200 | . 41 159 Game ------ Seed SystemBeamAirjet Manual? 0 Play Time 00:13:56 Cumulative 5.0 hours Start 2019.12.19 @ 17:28:11 End 2019.12.19 @ 17:42:31 Sessions 1 Manual Loads 0 Difficulty Rogue Special Mode Winter2019/RPGLIKE Game No. 11 Rogue 11 Adventurer 0 Explorer 0 Win Type - Total 0 Types 0/0/0/0/0/0/0 Lore% 2 Gallery% 16 Achievement% 1 Wizard Run 0 Options --------- ASCII 0 Keyboard 0 Movement Vi Keybinds 0 Fullscreen 2 Font 12/Smallcaps Map View 83x54 Tactical HUD 0 Map Filters NONE Filters NONE Steam 1 RUN: f5f0b234-9789-4469-8398-f0bb7bcf1251